[Event "Titled Tuesday Blitz March 21 Late 2023"]
[White "Krallis, Christos"]
[Black "Kobo, Ori"]
[WhiteFideId "4298896"]
[BlackFideId "2812320"]
[WhiteElo "2243"]
[BlackElo "2447"]
[Result "1/2-1/2"]
[Round "04"]
[TimeControl "180+2"]
[Date "2023.03.21"]
[WhiteClock "0:00:10"]
[BlackClock "0:00:11"]

1. d4 {[%clk 0:02:59]}  Nf6 {[%clk 0:02:59]} 2. c4 {[%clk 0:02:59]}  g6 {[%clk 0:03:00]} 3. Nf3 {[%clk 0:02:57]}  Bg7 {[%clk 0:03:00]} 4. g3 {[%clk 0:02:57]}  O-O {[%clk 0:03:00]} 5. Bg2 {[%clk 0:02:58]}  d6 {[%clk 0:03:01]} 6. O-O {[%clk 0:02:58]}  Re8 {[%clk 0:03:01]} 7. b3 {[%clk 0:02:57]}  Nc6 {[%clk 0:02:52]} 8. Bb2 {[%clk 0:02:56]}  e5 {[%clk 0:02:52]} 9. dxe5 {[%clk 0:02:54]}  Ng4 {[%clk 0:02:52]} 10. Nc3 {[%clk 0:02:51]}  Ngxe5 {[%clk 0:02:52]} 11. Nxe5 {[%clk 0:02:51]}  Nxe5 {[%clk 0:02:53]} 12. Qd2 {[%clk 0:02:51]}  a6 {[%clk 0:02:37]} 13. Rfd1 {[%clk 0:02:47]}  Nc6 {[%clk 0:02:03]} 14. Nd5 {[%clk 0:02:34]}  Be6 {[%clk 0:02:01]} 15. Bxg7 {[%clk 0:02:33]}  Kxg7 {[%clk 0:02:02]} 16. Qb2+ {[%clk 0:02:30]}  f6 {[%clk 0:02:02]} 17. Nf4 {[%clk 0:02:24]}  Bf7 {[%clk 0:01:55]} 18. c5 {[%clk 0:02:21]}  Qe7 {[%clk 0:01:55]} 19. cxd6 {[%clk 0:02:20]}  cxd6 {[%clk 0:01:56]} 20. h4 {[%clk 0:02:15]}  Qe5 {[%clk 0:01:49]} 21. Qd2 {[%clk 0:02:12]}  Rad8 {[%clk 0:01:45]} 22. Rac1 {[%clk 0:02:09]}  d5 {[%clk 0:01:40]} 23. Bf3 {[%clk 0:02:07]}  Qd6 {[%clk 0:01:27]} 24. e3 {[%clk 0:01:26]}  g5 {[%clk 0:01:09]} 25. hxg5 {[%clk 0:01:23]}  fxg5 {[%clk 0:01:09]} 26. Qb2+ {[%clk 0:01:07]}  Qe5 {[%clk 0:00:57]} 27. Nd3 {[%clk 0:01:01]}  Qxb2 {[%clk 0:00:57]} 28. Nxb2 {[%clk 0:01:01]}  Ne5 {[%clk 0:00:58]} 29. Bg2 {[%clk 0:00:59]}  Re7 {[%clk 0:00:41]} 30. Na4 {[%clk 0:00:54]}  h5 {[%clk 0:00:25]} 31. Nc3 {[%clk 0:00:49]}  Red7 {[%clk 0:00:23]} 32. Ne2 {[%clk 0:00:46]}  h4 {[%clk 0:00:23]} 33. Nd4 {[%clk 0:00:41]}  hxg3 {[%clk 0:00:16]} 34. Nf5+ {[%clk 0:00:41]}  Kf6 {[%clk 0:00:16]} 35. Nxg3 {[%clk 0:00:42]}  g4 {[%clk 0:00:13]} 36. Ne2 {[%clk 0:00:42]}  Nf3+ {[%clk 0:00:11]} 37. Kf1 {[%clk 0:00:37]}  Bg6 {[%clk 0:00:09]} 38. Ng3 {[%clk 0:00:32]}  Ke5 {[%clk 0:00:08]} 39. a4 {[%clk 0:00:25]}  Rh7 {[%clk 0:00:05]} 40. Rc5 {[%clk 0:00:19]}  Rhd7 {[%clk 0:00:05]} 41. Bxf3 {[%clk 0:00:19]}  gxf3 {[%clk 0:00:06]} 42. Rd4 {[%clk 0:00:18]}  Ke6 {[%clk 0:00:05]} 43. a5 {[%clk 0:00:18]}  Rh8 {[%clk 0:00:03]} 44. Ke1 {[%clk 0:00:16]}  Rh2 {[%clk 0:00:03]} 45. b4 {[%clk 0:00:16]}  Rg2 {[%clk 0:00:03]} 46. b5 {[%clk 0:00:16]}  Rg1+ {[%clk 0:00:04]} 47. Kd2 {[%clk 0:00:16]}  Rb1 {[%clk 0:00:04]} 48. b6 {[%clk 0:00:13]}  Rb2+ {[%clk 0:00:04]} 49. Ke1 {[%clk 0:00:11]}  Rb1+ {[%clk 0:00:03]} 50. Kd2 {[%clk 0:00:11]}  Rb2+ {[%clk 0:00:03]} 51. Ke1 {[%clk 0:00:11]}  Rb1+ {[%clk 0:00:02]} 52. Rd1 {[%clk 0:00:12]}  Rxd1+ {[%clk 0:00:02]} 53. Kxd1 {[%clk 0:00:13]}  d4 {[%clk 0:00:03]} 54. e4 {[%clk 0:00:13]}  Kd6 {[%clk 0:00:02]} 55. Rd5+ {[%clk 0:00:13]}  Kc6 {[%clk 0:00:03]} 56. Rxd7 {[%clk 0:00:13]}  Kxd7 {[%clk 0:00:03]} 57. Kd2 {[%clk 0:00:13]}  Kc6 {[%clk 0:00:04]} 58. Kd3 {[%clk 0:00:14]}  Kb5 {[%clk 0:00:05]} 59. Kxd4 {[%clk 0:00:13]}  Kxa5 {[%clk 0:00:05]} 60. Kc5 {[%clk 0:00:14]}  Ka4 {[%clk 0:00:05]} 61. e5 {[%clk 0:00:15]}  a5 {[%clk 0:00:04]} 62. Kc4 {[%clk 0:00:12]}  Bf7+ {[%clk 0:00:04]} 63. Kc3 {[%clk 0:00:11]}  Kb5 {[%clk 0:00:05]} 64. Ne4 {[%clk 0:00:11]}  Kxb6 {[%clk 0:00:04]} 65. Ng5 {[%clk 0:00:12]}  Bh5 {[%clk 0:00:05]} 66. Nh7 {[%clk 0:00:08]}  Kc6 {[%clk 0:00:05]} 67. Nf6 {[%clk 0:00:09]}  Bf7 {[%clk 0:00:05]} 68. Ne4 {[%clk 0:00:06]}  b5 {[%clk 0:00:04]} 69. Ng5 {[%clk 0:00:06]}  Bh5 {[%clk 0:00:05]} 70. e6 {[%clk 0:00:05]}  Kd6 {[%clk 0:00:05]} 71. Kd4 {[%clk 0:00:02]}  a4 {[%clk 0:00:04]} 72. Kc3 {[%clk 0:00:03]}  Ke7 {[%clk 0:00:04]} 73. Kb4 {[%clk 0:00:03]}  Be8 {[%clk 0:00:05]} 74. Ka3 {[%clk 0:00:03]}  Kf6 {[%clk 0:00:05]} 75. Nxf3 {[%clk 0:00:03]}  Kxe6 {[%clk 0:00:06]} 76. Nd4+ {[%clk 0:00:03]}  Kd5 {[%clk 0:00:06]} 77. Nxb5 {[%clk 0:00:03]}  Bxb5 {[%clk 0:00:07]} 78. f4 {[%clk 0:00:04]}  Ke4 {[%clk 0:00:08]} 79. f5 {[%clk 0:00:05]}  Kxf5 {[%clk 0:00:08]} 80. Kb4 {[%clk 0:00:05]}  Ke5 {[%clk 0:00:09]} 81. Ka3 {[%clk 0:00:06]}  Kd4 {[%clk 0:00:09]} 82. Kb2 {[%clk 0:00:07]}  Kc4 {[%clk 0:00:10]} 83. Ka1 {[%clk 0:00:08]}  Kb3 {[%clk 0:00:10]} 84. Kb1 {[%clk 0:00:09]}  a3 {[%clk 0:00:11]} 85. Ka1 {[%clk 0:00:10]}  Bd3 {[%clk 0:00:11]} 1/2-1/2


[Site "https://www.chess.com"]

[Event "Titled Tuesday Blitz March 21 Late 2023"]
[White "Sivakumar, Shaaketh"]
[Black "Averjanov, Alexey"]
[WhiteFideId "30940176"]
[BlackFideId "14109867"]
[WhiteElo "2174"]
[BlackElo "2807"]
[Result "0-1"]
[Round "04"]
[TimeControl "180+2"]
[Date "2023.03.21"]
[WhiteClock "0:01:32"]
[BlackClock "0:01:16"]

1. e4 {[%clk 0:03:00]}  c6 {[%clk 0:02:59]} 2. d4 {[%clk 0:03:00]}  d5 {[%clk 0:03:00]} 3. e5 {[%clk 0:03:00]}  Bf5 {[%clk 0:02:58]} 4. h4 {[%clk 0:03:01]}  h5 {[%clk 0:02:57]} 5. Bd3 {[%clk 0:03:01]}  Bxd3 {[%clk 0:02:57]} 6. Qxd3 {[%clk 0:03:02]}  e6 {[%clk 0:02:57]} 7. Ne2 {[%clk 0:03:02]}  Qa5+ {[%clk 0:02:57]} 8. c3 {[%clk 0:03:02]}  Qa6 {[%clk 0:02:57]} 9. Qxa6 {[%clk 0:03:02]}  Nxa6 {[%clk 0:02:58]} 10. Nd2 {[%clk 0:02:55]}  Nh6 {[%clk 0:02:56]} 11. Nf1 {[%clk 0:02:56]}  Nb8 {[%clk 0:02:53]} 12. Ne3 {[%clk 0:02:56]}  c5 {[%clk 0:02:51]} 13. f4 {[%clk 0:02:52]}  g6 {[%clk 0:02:50]} 14. dxc5 {[%clk 0:02:48]}  Bxc5 {[%clk 0:02:49]} 15. b4 {[%clk 0:02:45]}  Bb6 {[%clk 0:02:41]} 16. Nd4 {[%clk 0:02:43]}  Bxd4 {[%clk 0:02:38]} 17. cxd4 {[%clk 0:02:43]}  Nc6 {[%clk 0:02:39]} 18. Bb2 {[%clk 0:02:36]}  Nxb4 {[%clk 0:02:35]} 19. Kd2 {[%clk 0:02:36]}  Nf5 {[%clk 0:02:31]} 20. Nxf5 {[%clk 0:02:33]}  gxf5 {[%clk 0:02:32]} 21. Ba3 {[%clk 0:02:19]}  Nc6 {[%clk 0:02:31]} 22. Rab1 {[%clk 0:02:14]}  O-O-O {[%clk 0:02:19]} 23. Bc5 {[%clk 0:02:00]}  Rhg8 {[%clk 0:02:18]} 24. Rhc1 {[%clk 0:01:53]}  Rxg2+ {[%clk 0:02:17]} 25. Ke1 {[%clk 0:01:50]}  Rxa2 {[%clk 0:02:00]} 26. Rb3 {[%clk 0:01:47]}  Rg8 {[%clk 0:01:58]} 27. Kf1 {[%clk 0:01:46]}  Rgg2 {[%clk 0:01:57]} 28. Rcb1 {[%clk 0:01:43]}  b6 {[%clk 0:01:48]} 29. Bxb6 {[%clk 0:01:43]}  axb6 {[%clk 0:01:44]} 30. Rxb6 {[%clk 0:01:44]}  Raf2+ {[%clk 0:01:43]} 31. Ke1 {[%clk 0:01:43]}  Re2+ {[%clk 0:01:38]} 32. Kf1 {[%clk 0:01:43]}  Ref2+ {[%clk 0:01:19]} 33. Ke1 {[%clk 0:01:42]}  Rc2 {[%clk 0:01:19]} 34. Rb7 {[%clk 0:01:32]}  Rg1# {[%clk 0:01:16]} 0-1


[Site "https://www.chess.com"]

[Event "Titled Tuesday Blitz March 21 Late 2023"]
[White "Vakhlamov, Igor L."]
[Black "Thomforde-Toates, Noah"]
[WhiteFideId "24126748"]
[BlackFideId "30951992"]
[WhiteElo "2400"]
[BlackElo "2603"]
[Result "1/2-1/2"]
[Round "04"]
[TimeControl "180+2"]
[Date "2023.03.21"]
[WhiteClock "0:00:08"]
[BlackClock "0:00:09"]

1. e4 {[%clk 0:02:59]}  c5 {[%clk 0:02:59]} 2. Nf3 {[%clk 0:03:00]}  g6 {[%clk 0:02:58]} 3. Nc3 {[%clk 0:03:00]}  Bg7 {[%clk 0:02:58]} 4. d4 {[%clk 0:03:00]}  cxd4 {[%clk 0:02:59]} 5. Nxd4 {[%clk 0:03:01]}  Nc6 {[%clk 0:02:59]} 6. Nxc6 {[%clk 0:03:02]}  bxc6 {[%clk 0:02:59]} 7. Bc4 {[%clk 0:03:02]}  d6 {[%clk 0:02:56]} 8. O-O {[%clk 0:03:02]}  Nf6 {[%clk 0:02:56]} 9. e5 {[%clk 0:03:02]}  Ng4 {[%clk 0:02:48]} 10. exd6 {[%clk 0:02:42]}  Qxd6 {[%clk 0:02:45]} 11. Qxd6 {[%clk 0:02:41]}  exd6 {[%clk 0:02:45]} 12. Re1+ {[%clk 0:02:42]}  Kf8 {[%clk 0:02:41]} 13. Bf4 {[%clk 0:02:40]}  Be5 {[%clk 0:02:37]} 14. Bxe5 {[%clk 0:02:27]}  Nxe5 {[%clk 0:02:35]} 15. Bb3 {[%clk 0:02:28]}  Nd7 {[%clk 0:02:26]} 16. Ne4 {[%clk 0:02:20]}  d5 {[%clk 0:02:20]} 17. Nd6 {[%clk 0:02:20]}  Nb6 {[%clk 0:02:16]} 18. c4 {[%clk 0:02:00]}  Be6 {[%clk 0:02:14]} 19. Rac1 {[%clk 0:01:41]}  Rd8 {[%clk 0:02:11]} 20. c5 {[%clk 0:01:20]}  Nd7 {[%clk 0:02:05]} 21. Nb7 {[%clk 0:01:20]}  Rc8 {[%clk 0:02:01]} 22. Na5 {[%clk 0:01:17]}  Ke7 {[%clk 0:01:51]} 23. f4 {[%clk 0:01:11]}  Rhe8 {[%clk 0:01:43]} 24. Kf2 {[%clk 0:01:08]}  Kf6 {[%clk 0:01:41]} 25. Ba4 {[%clk 0:01:06]}  Nb8 {[%clk 0:01:40]} 26. b4 {[%clk 0:01:06]}  Bd7 {[%clk 0:01:37]} 27. Nb3 {[%clk 0:01:02]}  Rxe1 {[%clk 0:01:11]} 28. Rxe1 {[%clk 0:01:03]}  Re8 {[%clk 0:01:11]} 29. Rxe8 {[%clk 0:01:02]}  Bxe8 {[%clk 0:01:12]} 30. Nd4 {[%clk 0:01:03]}  Ke7 {[%clk 0:01:11]} 31. Ke3 {[%clk 0:01:01]}  Kd8 {[%clk 0:01:08]} 32. g4 {[%clk 0:01:00]}  f6 {[%clk 0:01:07]} 33. h4 {[%clk 0:00:57]}  h6 {[%clk 0:00:59]} 34. g5 {[%clk 0:00:51]}  hxg5 {[%clk 0:00:55]} 35. fxg5 {[%clk 0:00:52]}  fxg5 {[%clk 0:00:54]} 36. hxg5 {[%clk 0:00:53]}  Ke7 {[%clk 0:00:54]} 37. Kf4 {[%clk 0:00:52]}  Bd7 {[%clk 0:00:50]} 38. Bc2 {[%clk 0:00:39]}  Be8 {[%clk 0:00:50]} 39. Bd3 {[%clk 0:00:39]}  Bf7 {[%clk 0:00:47]} 40. Ke5 {[%clk 0:00:38]}  Nd7+ {[%clk 0:00:45]} 41. Kf4 {[%clk 0:00:39]}  Nb8 {[%clk 0:00:46]} 42. a3 {[%clk 0:00:31]}  Be8 {[%clk 0:00:45]} 43. Nf3 {[%clk 0:00:24]}  Nd7 {[%clk 0:00:45]} 44. Ne5 {[%clk 0:00:24]}  Nf8 {[%clk 0:00:45]} 45. a4 {[%clk 0:00:19]}  Ne6+ {[%clk 0:00:40]} 46. Kg4 {[%clk 0:00:19]}  Nf8 {[%clk 0:00:41]} 47. Kg3 {[%clk 0:00:16]}  Ke6 {[%clk 0:00:41]} 48. Kf4 {[%clk 0:00:15]}  Ke7 {[%clk 0:00:41]} 49. Be2 {[%clk 0:00:09]}  Ne6+ {[%clk 0:00:39]} 50. Kg4 {[%clk 0:00:09]}  Nf8 {[%clk 0:00:36]} 51. Kg3 {[%clk 0:00:08]}  Ke6 {[%clk 0:00:32]} 52. Kf4 {[%clk 0:00:08]}  Ke7 {[%clk 0:00:32]} 53. Bg4 {[%clk 0:00:09]}  Nh7 {[%clk 0:00:21]} 54. Bc8 {[%clk 0:00:08]}  Nf8 {[%clk 0:00:21]} 55. Kg4 {[%clk 0:00:06]}  Nd7 {[%clk 0:00:11]} 56. Bxd7 {[%clk 0:00:05]}  Bxd7+ {[%clk 0:00:11]} 57. Nxd7 {[%clk 0:00:04]}  Kxd7 {[%clk 0:00:12]} 58. Kf4 {[%clk 0:00:05]}  Ke6 {[%clk 0:00:11]} 59. b5 {[%clk 0:00:05]}  Kd7 {[%clk 0:00:06]} 60. Ke5 {[%clk 0:00:02]}  Kc7 {[%clk 0:00:06]} 61. Kd4 {[%clk 0:00:01]}  Kd7 {[%clk 0:00:06]} 62. b6 {[%clk 0:00:01]}  a5 {[%clk 0:00:05]} 63. Ke5 {[%clk 0:00:01]}  Kc8 {[%clk 0:00:05]} 64. Kd6 {[%clk 0:00:01]}  Kb7 {[%clk 0:00:05]} 65. Ke5 {[%clk 0:00:01]}  Kc8 {[%clk 0:00:06]} 66. Kd4 {[%clk 0:00:02]}  Kb7 {[%clk 0:00:06]} 67. Kc3 {[%clk 0:00:03]}  Kc8 {[%clk 0:00:07]} 68. Kd3 {[%clk 0:00:04]}  Kb7 {[%clk 0:00:07]} 69. Ke3 {[%clk 0:00:05]}  Kc8 {[%clk 0:00:08]} 70. Kf3 {[%clk 0:00:06]}  Kb7 {[%clk 0:00:08]} 71. Kg3 {[%clk 0:00:07]}  Kc8 {[%clk 0:00:09]} 72. Kf2 {[%clk 0:00:07]}  Kb7 {[%clk 0:00:10]} 73. Ke3 {[%clk 0:00:08]}  Kc8 {[%clk 0:00:10]} 74. Kd4 {[%clk 0:00:09]}  Kb7 {[%clk 0:00:11]} 75. Ke5 {[%clk 0:00:10]}  Ka6 {[%clk 0:00:09]} 76. Kd6 {[%clk 0:00:08]}  Kb7 {[%clk 0:00:09]} 77. Ke5 {[%clk 0:00:08]} 1/2-1/2


[Site "https://www.chess.com"]

[Event "Titled Tuesday Blitz March 21 Late 2023"]
[White "Melkumyan, Hrant"]
[Black "Turayev, Shahruh"]
[WhiteFideId "13302485"]
[BlackFideId "14003856"]
[WhiteElo "2604"]
[BlackElo "2171"]
[Result "1/2-1/2"]
[Round "04"]
[TimeControl "180+2"]
[Date "2023.03.21"]
[WhiteClock "0:00:14"]
[BlackClock "0:00:11"]

1. d4 {[%clk 0:03:00]}  d5 {[%clk 0:02:58]} 2. c4 {[%clk 0:02:58]}  dxc4 {[%clk 0:02:56]} 3. e3 {[%clk 0:02:56]}  e5 {[%clk 0:02:55]} 4. Bxc4 {[%clk 0:02:55]}  exd4 {[%clk 0:02:55]} 5. exd4 {[%clk 0:02:56]}  Bd6 {[%clk 0:02:56]} 6. Nf3 {[%clk 0:02:53]}  Nf6 {[%clk 0:02:53]} 7. Qe2+ {[%clk 0:02:53]}  Qe7 {[%clk 0:02:52]} 8. Qxe7+ {[%clk 0:02:53]}  Bxe7 {[%clk 0:02:53]} 9. O-O {[%clk 0:02:53]}  O-O {[%clk 0:02:53]} 10. Re1 {[%clk 0:02:53]}  Bd6 {[%clk 0:02:52]} 11. Nc3 {[%clk 0:02:53]}  a6 {[%clk 0:02:52]} 12. Bg5 {[%clk 0:02:53]}  Nbd7 {[%clk 0:02:29]} 13. Ne5 {[%clk 0:02:51]}  b5 {[%clk 0:02:21]} 14. Bb3 {[%clk 0:02:50]}  Bb7 {[%clk 0:02:19]} 15. Rac1 {[%clk 0:02:30]}  Rae8 {[%clk 0:01:57]} 16. Bf4 {[%clk 0:02:15]}  Nb6 {[%clk 0:01:43]} 17. h3 {[%clk 0:02:08]}  Nfd5 {[%clk 0:01:36]} 18. Bg3 {[%clk 0:02:06]}  Nxc3 {[%clk 0:01:31]} 19. bxc3 {[%clk 0:01:50]}  Bd5 {[%clk 0:01:31]} 20. Nd3 {[%clk 0:01:38]}  Bxg3 {[%clk 0:01:24]} 21. fxg3 {[%clk 0:01:39]}  Nc4 {[%clk 0:01:13]} 22. Nc5 {[%clk 0:01:36]}  a5 {[%clk 0:01:13]} 23. Bxc4 {[%clk 0:01:36]}  Bxc4 {[%clk 0:01:12]} 24. a3 {[%clk 0:01:37]}  f6 {[%clk 0:00:58]} 25. Kf2 {[%clk 0:01:36]}  Kf7 {[%clk 0:00:57]} 26. g4 {[%clk 0:01:34]}  Rxe1 {[%clk 0:00:57]} 27. Rxe1 {[%clk 0:01:33]}  Re8 {[%clk 0:00:57]} 28. Rxe8 {[%clk 0:01:32]}  Kxe8 {[%clk 0:00:58]} 29. Nb7 {[%clk 0:01:32]}  a4 {[%clk 0:00:58]} 30. Nc5 {[%clk 0:01:29]}  Ke7 {[%clk 0:00:57]} 31. Ke3 {[%clk 0:01:27]}  Kd6 {[%clk 0:00:57]} 32. h4 {[%clk 0:01:23]}  Kd5 {[%clk 0:00:54]} 33. g5 {[%clk 0:01:23]}  fxg5 {[%clk 0:00:53]} 34. hxg5 {[%clk 0:01:23]}  Bf1 {[%clk 0:00:54]} 35. g3 {[%clk 0:01:22]}  Kc4 {[%clk 0:00:52]} 36. Kd2 {[%clk 0:01:22]}  Bh3 {[%clk 0:00:51]} 37. Na6 {[%clk 0:01:19]}  Kb3 {[%clk 0:00:49]} 38. Nxc7 {[%clk 0:01:17]}  Bd7 {[%clk 0:00:49]} 39. d5 {[%clk 0:00:51]}  Kxa3 {[%clk 0:00:47]} 40. Kc2 {[%clk 0:00:51]}  Bf5+ {[%clk 0:00:42]} 41. Kc1 {[%clk 0:00:50]}  Bd7 {[%clk 0:00:29]} 42. Na6 {[%clk 0:00:46]}  Bc8 {[%clk 0:00:17]} 43. d6 {[%clk 0:00:43]}  Kb3 {[%clk 0:00:15]} 44. Nc7 {[%clk 0:00:29]}  a3 {[%clk 0:00:12]} 45. Kb1 {[%clk 0:00:27]}  Kxc3 {[%clk 0:00:12]} 46. Nxb5+ {[%clk 0:00:27]}  Kb4 {[%clk 0:00:12]} 47. Nc7 {[%clk 0:00:20]}  Kc5 {[%clk 0:00:12]} 48. Ne8 {[%clk 0:00:20]}  Bd7 {[%clk 0:00:11]} 49. Nxg7 {[%clk 0:00:19]}  Kxd6 {[%clk 0:00:12]} 50. Nh5 {[%clk 0:00:18]}  Ke7 {[%clk 0:00:11]} 51. Nf6 {[%clk 0:00:16]}  Bf5+ {[%clk 0:00:10]} 52. Ka2 {[%clk 0:00:16]}  Kf7 {[%clk 0:00:11]} 53. Kxa3 {[%clk 0:00:15]}  Kg6 {[%clk 0:00:11]} 54. g4 {[%clk 0:00:15]}  Kxg5 {[%clk 0:00:10]} 55. Nxh7+ {[%clk 0:00:15]}  Bxh7 {[%clk 0:00:10]} 56. Kb4 {[%clk 0:00:14]}  Kxg4 {[%clk 0:00:11]} 1/2-1/2


[Site "https://www.chess.com"]

[Event "Titled Tuesday Blitz March 21 Late 2023"]
[White "Stoyanov, Tsvetan"]
[Black "Sokac, Marko"]
[WhiteFideId "2917173"]
[BlackFideId "14531356"]
[WhiteElo "2349"]
[BlackElo "2355"]
[Result "1-0"]
[Round "04"]
[TimeControl "180+2"]
[Date "2023.03.21"]
[WhiteClock "0:00:04"]
[BlackClock "0:00:01"]

1. b3 {[%clk 0:03:00]}  e5 {[%clk 0:03:00]} 2. Bb2 {[%clk 0:03:01]}  Nc6 {[%clk 0:03:00]} 3. e3 {[%clk 0:03:02]}  Nge7 {[%clk 0:03:00]} 4. c4 {[%clk 0:02:59]}  d5 {[%clk 0:03:00]} 5. cxd5 {[%clk 0:02:55]}  Nxd5 {[%clk 0:03:01]} 6. Bb5 {[%clk 0:02:53]}  f6 {[%clk 0:03:01]} 7. Ne2 {[%clk 0:02:37]}  Bd7 {[%clk 0:02:46]} 8. O-O {[%clk 0:02:30]}  a6 {[%clk 0:02:45]} 9. Bc4 {[%clk 0:02:25]}  Nb6 {[%clk 0:02:45]} 10. d4 {[%clk 0:02:19]}  Nxc4 {[%clk 0:02:43]} 11. bxc4 {[%clk 0:02:19]}  Be7 {[%clk 0:02:35]} 12. Nbc3 {[%clk 0:02:08]}  O-O {[%clk 0:02:34]} 13. Nd5 {[%clk 0:02:02]}  Be6 {[%clk 0:02:31]} 14. Nxe7+ {[%clk 0:01:59]}  Nxe7 {[%clk 0:02:31]} 15. d5 {[%clk 0:01:58]}  Bf5 {[%clk 0:02:27]} 16. Ba3 {[%clk 0:01:56]}  Rf7 {[%clk 0:02:19]} 17. Qb3 {[%clk 0:01:55]}  b6 {[%clk 0:02:16]} 18. Rad1 {[%clk 0:01:54]}  Nc8 {[%clk 0:02:15]} 19. Ng3 {[%clk 0:01:49]}  Bg6 {[%clk 0:02:10]} 20. f4 {[%clk 0:01:45]}  exf4 {[%clk 0:02:05]} 21. exf4 {[%clk 0:01:46]}  Rd7 {[%clk 0:02:01]} 22. Rfe1 {[%clk 0:01:33]}  Bf7 {[%clk 0:02:00]} 23. Nf5 {[%clk 0:01:30]}  b5 {[%clk 0:01:58]} 24. Qg3 {[%clk 0:01:11]}  Bg6 {[%clk 0:01:58]} 25. Nd4 {[%clk 0:01:11]}  Nd6 {[%clk 0:01:41]} 26. Ne6 {[%clk 0:00:55]}  Qc8 {[%clk 0:01:38]} 27. c5 {[%clk 0:00:43]}  Nf5 {[%clk 0:01:32]} 28. Qb3 {[%clk 0:00:37]}  Bf7 {[%clk 0:01:26]} 29. c6 {[%clk 0:00:32]}  Rd6 {[%clk 0:01:27]} 30. Bxd6 {[%clk 0:00:31]}  Nxd6 {[%clk 0:01:28]} 31. Qg3 {[%clk 0:00:24]}  g6 {[%clk 0:01:25]} 32. Qh4 {[%clk 0:00:22]}  f5 {[%clk 0:01:13]} 33. Qf6 {[%clk 0:00:20]}  Bxe6 {[%clk 0:01:13]} 34. dxe6 {[%clk 0:00:19]}  Qf8 {[%clk 0:01:01]} 35. Qd4 {[%clk 0:00:10]}  Qe7 {[%clk 0:00:57]} 36. Qd5 {[%clk 0:00:07]}  Re8 {[%clk 0:00:52]} 37. Kh1 {[%clk 0:00:07]}  Ne4 {[%clk 0:00:51]} 38. Qd4 {[%clk 0:00:04]}  Qxe6 {[%clk 0:00:49]} 39. Kg1 {[%clk 0:00:03]}  Qxc6 {[%clk 0:00:46]} 40. Rc1 {[%clk 0:00:03]}  Qb7 {[%clk 0:00:36]} 41. Red1 {[%clk 0:00:01]}  Re7 {[%clk 0:00:32]} 42. h3 {[%clk 0:00:01]}  Ng3 {[%clk 0:00:27]} 43. Kh2 {[%clk 0:00:01]}  Ne2 {[%clk 0:00:26]} 44. Qd8+ {[%clk 0:00:02]}  Kf7 {[%clk 0:00:26]} 45. Rd7 {[%clk 0:00:03]}  Rxd7 {[%clk 0:00:02]} 46. Qxd7+ {[%clk 0:00:04]}  Kf6 {[%clk 0:00:01]} 47. Rxc7 {[%clk 0:00:04]} 1-0


[Site "https://www.chess.com"]

[Event "Titled Tuesday Blitz March 21 Late 2023"]
[White "Adewumi, Tanitoluwa"]
[Black "Marjanovic, Annamaria"]
[WhiteFideId "30966396"]
[BlackFideId "750930"]
[WhiteElo "2756"]
[BlackElo "2212"]
[Result "1-0"]
[Round "04"]
[TimeControl "180+2"]
[Date "2023.03.21"]
[WhiteClock "0:00:11"]
[BlackClock "0:00:26"]

1. e4 {[%clk 0:02:48]}  e6 {[%clk 0:02:57]} 2. d4 {[%clk 0:02:47]}  d5 {[%clk 0:02:57]} 3. exd5 {[%clk 0:02:48]}  exd5 {[%clk 0:02:57]} 4. Nf3 {[%clk 0:02:49]}  Nf6 {[%clk 0:02:57]} 5. Bd3 {[%clk 0:02:45]}  c5 {[%clk 0:02:57]} 6. O-O {[%clk 0:02:41]}  Be7 {[%clk 0:02:55]} 7. dxc5 {[%clk 0:02:40]}  O-O {[%clk 0:02:54]} 8. Be3 {[%clk 0:02:38]}  Bg4 {[%clk 0:02:51]} 9. h3 {[%clk 0:02:20]}  Bh5 {[%clk 0:02:50]} 10. Nbd2 {[%clk 0:02:11]}  Nbd7 {[%clk 0:02:49]} 11. b4 {[%clk 0:02:07]}  Ne5 {[%clk 0:02:37]} 12. Be2 {[%clk 0:01:28]}  Nxf3+ {[%clk 0:02:18]} 13. Nxf3 {[%clk 0:01:19]}  Ne4 {[%clk 0:02:14]} 14. Nd4 {[%clk 0:01:09]}  Nc3 {[%clk 0:02:02]} 15. Qd3 {[%clk 0:01:00]}  Nxe2+ {[%clk 0:01:59]} 16. Nxe2 {[%clk 0:00:58]}  Bg6 {[%clk 0:01:48]} 17. Qd2 {[%clk 0:00:57]}  a5 {[%clk 0:01:35]} 18. a3 {[%clk 0:00:51]}  Qd7 {[%clk 0:01:27]} 19. Nf4 {[%clk 0:00:43]}  Rfd8 {[%clk 0:01:05]} 20. Rad1 {[%clk 0:00:28]}  axb4 {[%clk 0:00:58]} 21. axb4 {[%clk 0:00:25]}  Ra2 {[%clk 0:00:54]} 22. Nxd5 {[%clk 0:00:20]}  Kf8 {[%clk 0:00:32]} 23. Nxe7 {[%clk 0:00:14]}  Kxe7 {[%clk 0:00:26]} 24. Bg5+ {[%clk 0:00:11]}  f6 {[%clk 0:00:27]} 25. Rfe1+ {[%clk 0:00:11]}  Kf8 {[%clk 0:00:27]} 26. Qxd7 {[%clk 0:00:10]}  Rxd7 {[%clk 0:00:28]} 27. Rxd7 {[%clk 0:00:11]}  fxg5 {[%clk 0:00:29]} 28. Rxb7 {[%clk 0:00:11]}  Rxc2 {[%clk 0:00:27]} 29. Rd1 {[%clk 0:00:10]}  Re2 {[%clk 0:00:23]} 30. Rd8+ {[%clk 0:00:09]}  Be8 {[%clk 0:00:24]} 31. c6 {[%clk 0:00:09]}  Re1+ {[%clk 0:00:25]} 32. Kh2 {[%clk 0:00:08]}  Re7 {[%clk 0:00:26]} 33. Rxe7 {[%clk 0:00:07]}  Kxe7 {[%clk 0:00:26]} 34. Rxe8+ {[%clk 0:00:07]}  Kxe8 {[%clk 0:00:26]} 35. b5 {[%clk 0:00:08]}  Kd8 {[%clk 0:00:27]} 36. b6 {[%clk 0:00:09]}  Kc8 {[%clk 0:00:27]} 37. b7+ {[%clk 0:00:10]}  Kc7 {[%clk 0:00:27]} 38. h4 {[%clk 0:00:11]}  gxh4 {[%clk 0:00:26]} 39. Kh3 {[%clk 0:00:11]} 1-0


[Site "https://www.chess.com"]

[Event "Titled Tuesday Blitz March 21 Late 2023"]
[White "Santos Ruiz, Miguel"]
[Black "Riff, Vincent"]
[WhiteFideId "22291482"]
[BlackFideId "617776"]
[WhiteElo "2504"]
[BlackElo "2369"]
[Result "1-0"]
[Round "04"]
[TimeControl "180+2"]
[Date "2023.03.21"]
[WhiteClock "0:00:14"]
[BlackClock "0:00:11"]

1. e4 {[%clk 0:03:00]}  c5 {[%clk 0:02:57]} 2. Nf3 {[%clk 0:03:00]}  Nc6 {[%clk 0:02:57]} 3. d4 {[%clk 0:03:00]}  cxd4 {[%clk 0:02:57]} 4. Nxd4 {[%clk 0:03:01]}  e5 {[%clk 0:02:57]} 5. Nb5 {[%clk 0:02:59]}  d6 {[%clk 0:02:57]} 6. c4 {[%clk 0:03:00]}  Be7 {[%clk 0:02:55]} 7. N5c3 {[%clk 0:02:59]}  f5 {[%clk 0:02:51]} 8. exf5 {[%clk 0:02:58]}  Bxf5 {[%clk 0:02:52]} 9. Bd3 {[%clk 0:02:59]}  Be6 {[%clk 0:02:52]} 10. Nd5 {[%clk 0:02:58]}  Nf6 {[%clk 0:02:51]} 11. Nbc3 {[%clk 0:02:58]}  O-O {[%clk 0:02:50]} 12. O-O {[%clk 0:02:58]}  Qd7 {[%clk 0:02:42]} 13. Be3 {[%clk 0:02:56]}  Rae8 {[%clk 0:02:41]} 14. Re1 {[%clk 0:02:46]}  Kh8 {[%clk 0:02:40]} 15. a3 {[%clk 0:02:40]}  Bg8 {[%clk 0:02:40]} 16. Qc2 {[%clk 0:02:30]}  Bd8 {[%clk 0:02:38]} 17. Nxf6 {[%clk 0:02:25]}  Rxf6 {[%clk 0:02:37]} 18. Rad1 {[%clk 0:02:21]}  Nd4 {[%clk 0:02:27]} 19. Bxd4 {[%clk 0:02:19]}  exd4 {[%clk 0:02:26]} 20. Nd5 {[%clk 0:02:15]}  Rh6 {[%clk 0:02:20]} 21. Qd2 {[%clk 0:02:01]}  Re5 {[%clk 0:02:13]} 22. f4 {[%clk 0:01:08]}  Reh5 {[%clk 0:01:48]} 23. h3 {[%clk 0:01:08]}  b5 {[%clk 0:01:42]} 24. b3 {[%clk 0:01:05]}  bxc4 {[%clk 0:01:41]} 25. bxc4 {[%clk 0:01:06]}  Qa4 {[%clk 0:01:00]} 26. Qe2 {[%clk 0:00:47]}  Rxd5 {[%clk 0:00:26]} 27. cxd5 {[%clk 0:00:44]}  Bh4 {[%clk 0:00:23]} 28. Qe8 {[%clk 0:00:42]}  Qxa3 {[%clk 0:00:23]} 29. Rb1 {[%clk 0:00:20]}  Qa2 {[%clk 0:00:13]} 30. Re2 {[%clk 0:00:16]}  Qxd5 {[%clk 0:00:13]} 31. Rb8 {[%clk 0:00:15]}  Rf6 {[%clk 0:00:11]} 32. Qxg8+ {[%clk 0:00:14]}  Qxg8 {[%clk 0:00:11]} 33. Ree8 {[%clk 0:00:14]} 1-0


[Site "https://www.chess.com"]